[Event "Late-Titled-Tuesday-Blitz-March-26-2024"]
[Site "Chess.com"]
[Date "2024.03.26"]
[Round "8"]
[White "temus_galaktionov"]
[Black "TemploVillamarin"]
[Result "1-0"]
[WhiteElo "2831"]
[BlackElo "2271"]
[TimeControl "180+1"]
[EndTime "15:22:11 PDT"]
[Termination "temus_galaktionov won by resignation"]

1. d4 {[%clk 0:03:00.9]} 1... f5 {[%clk 0:02:57.8]} 2. Nf3 {[%clk 0:02:55.6]}
2... e6 {[%clk 0:02:57.1]} 3. g3 {[%clk 0:02:56.5]} 3... Nf6 {[%clk 0:02:57]} 4.
c4 {[%clk 0:02:57.4]} 4... b6 {[%clk 0:02:55.5]} 5. Bg2 {[%clk 0:02:58.3]} 5...
Bb7 {[%clk 0:02:56.2]} 6. O-O {[%clk 0:02:58.5]} 6... Be7 {[%clk 0:02:56.8]} 7.
Nc3 {[%clk 0:02:58.8]} 7... O-O {[%clk 0:02:57.3]} 8. d5 {[%clk 0:02:59.5]} 8...
Qe8 {[%clk 0:02:54.4]} 9. Bf4 {[%clk 0:02:56.7]} 9... Na6 {[%clk 0:02:45.3]} 10.
Nd4 {[%clk 0:02:57]} 10... exd5 {[%clk 0:02:43.5]} 11. cxd5 {[%clk 0:02:57.9]}
11... g6 {[%clk 0:02:40.2]} 12. d6 {[%clk 0:02:56.1]} 12... Bxd6 {[%clk
0:02:29]} 13. Bxb7 {[%clk 0:02:53.8]} 13... Bxf4 {[%clk 0:02:29.2]} 14. gxf4
{[%clk 0:02:53.7]} 14... Nc5 {[%clk 0:02:20.3]} 15. Bxa8 {[%clk 0:02:52]} 15...
Qxa8 {[%clk 0:02:21.2]} 16. e3 {[%clk 0:02:51.7]} 1-0

[Event "Late-Titled-Tuesday-Blitz-March-26-2024"]
[Site "Chess.com"]
[Date "2024.03.26"]
[Round "8"]
[White "Levanzovsky"]
[Black "Vahe_Danielyan"]
[Result "0-1"]
[WhiteElo "2420"]
[BlackElo "2591"]
[TimeControl "180+1"]
[EndTime "15:22:50 PDT"]
[Termination "Vahe_Danielyan won by resignation"]

1. e4 {[%clk 0:03:00.9]} 1... c6 {[%clk 0:02:54.5]} 2. Nf3 {[%clk 0:03:00.5]}
2... d5 {[%clk 0:02:54.6]} 3. Nc3 {[%clk 0:03:01.2]} 3... dxe4 {[%clk 0:02:55]}
4. Nxe4 {[%clk 0:03:02.1]} 4... Nf6 {[%clk 0:02:55.5]} 5. Qe2 {[%clk 0:02:56.4]}
5... Nxe4 {[%clk 0:02:53.2]} 6. Qxe4 {[%clk 0:02:57.3]} 6... Nd7 {[%clk
0:02:53.2]} 7. Bc4 {[%clk 0:02:56.6]} 7... Nf6 {[%clk 0:02:52.9]} 8. Ne5 {[%clk
0:02:57.3]} 8... e6 {[%clk 0:02:52.5]} 9. Qe2 {[%clk 0:02:57.9]} 9... b5 {[%clk
0:02:50]} 10. Bd3 {[%clk 0:02:36.6]} 10... Qd5 {[%clk 0:02:45.1]} 11. Nxc6
{[%clk 0:02:28.5]} 11... Qxg2 {[%clk 0:02:39.4]} 12. Rf1 {[%clk 0:02:26.8]}
12... Bd6 {[%clk 0:02:39.1]} 13. Bxb5 {[%clk 0:02:24.6]} 13... O-O {[%clk
0:02:35.4]} 14. d3 {[%clk 0:02:18.9]} 14... Bd7 {[%clk 0:02:29.8]} 15. Bd2
{[%clk 0:02:08.5]} 15... Bxc6 {[%clk 0:02:25.1]} 0-1

[Event "Late-Titled-Tuesday-Blitz-March-26-2024"]
[Site "Chess.com"]
[Date "2024.03.26"]
[Round "8"]
[White "LeoWin2012"]
[Black "Chesstiger64"]
[Result "0-1"]
[WhiteElo "2288"]
[BlackElo "2408"]
[TimeControl "180+1"]
[EndTime "15:23:55 PDT"]
[Termination "Chesstiger64 won by resignation"]

1. d3 {[%clk 0:03:00.9]} 1... d5 {[%clk 0:02:59.3]} 2. e4 {[%clk 0:03:01.8]}
2... dxe4 {[%clk 0:02:58.4]} 3. Nc3 {[%clk 0:03:02.2]} 3... exd3 {[%clk
0:02:57.3]} 4. Bxd3 {[%clk 0:03:01.9]} 4... c5 {[%clk 0:02:57.5]} 5. Be3 {[%clk
0:02:52.3]} 5... e6 {[%clk 0:02:56.1]} 6. Nf3 {[%clk 0:02:51.5]} 6... Nc6 {[%clk
0:02:56.1]} 7. Qe2 {[%clk 0:02:50.9]} 7... Nf6 {[%clk 0:02:54.3]} 8. Bg5 {[%clk
0:02:50]} 8... Be7 {[%clk 0:02:53.6]} 9. h4 {[%clk 0:02:48.6]} 9... Nd4 {[%clk
0:02:53.4]} 10. Nxd4 {[%clk 0:02:48.3]} 10... cxd4 {[%clk 0:02:53.7]} 11. Ne4
{[%clk 0:02:46.1]} 11... Nxe4 {[%clk 0:02:53.3]} 12. Bxe7 {[%clk 0:02:44.2]}
12... Qxe7 {[%clk 0:02:52.2]} 13. Qxe4 {[%clk 0:02:44.2]} 13... Qb4+ {[%clk
0:02:45.4]} 14. Ke2 {[%clk 0:02:38.1]} 14... Bd7 {[%clk 0:02:37.3]} 15. Rab1
{[%clk 0:02:32.2]} 15... Bb5 {[%clk 0:02:26.2]} 16. c3 {[%clk 0:02:27.8]} 16...
Bxd3+ {[%clk 0:02:10.5]} 17. Qxd3 {[%clk 0:02:28.7]} 17... dxc3 {[%clk 0:02:06]}
18. bxc3 {[%clk 0:02:29.6]} 18... Qg4+ {[%clk 0:02:05.8]} 19. f3 {[%clk
0:02:28.2]} 19... Qxg2+ {[%clk 0:02:05.2]} 20. Ke3 {[%clk 0:02:26.8]} 20... O-O
{[%clk 0:02:05.2]} 21. Rhg1 {[%clk 0:02:23.5]} 21... Qxa2 {[%clk 0:02:02.1]} 22.
Rg3 {[%clk 0:02:21.1]} 22... Rad8 {[%clk 0:01:54.2]} 23. Qb5 {[%clk 0:02:16.4]}
23... Qd2+ {[%clk 0:01:50.7]} 24. Ke4 {[%clk 0:02:16.6]} 24... f5+ {[%clk
0:01:49.8]} 25. Ke5 {[%clk 0:02:16.4]} 25... Rd5+ {[%clk 0:01:50]} 26. Kxe6
{[%clk 0:02:15.3]} 26... Rxb5 {[%clk 0:01:49.3]} 27. Rxb5 {[%clk 0:02:16.2]}
27... Qe1+ {[%clk 0:01:48.5]} 28. Re5 {[%clk 0:02:13.6]} 28... Qxg3 {[%clk
0:01:48.3]} 29. Rxf5 {[%clk 0:02:14.5]} 29... Qh3 {[%clk 0:01:46]} 0-1

[Event "Late-Titled-Tuesday-Blitz-March-26-2024"]
[Site "Chess.com"]
[Date "2024.03.26"]
[Round "8"]
[White "salgadoLO"]
[Black "Defenstrator"]
[Result "1-0"]
[WhiteElo "2190"]
[BlackElo "2444"]
[TimeControl "180+1"]
[EndTime "15:24:32 PDT"]
[Termination "salgadoLO won by checkmate"]

1. e4 {[%clk 0:03:00.9]} 1... e5 {[%clk 0:03:00.4]} 2. Nf3 {[%clk 0:02:59.6]}
2... Nc6 {[%clk 0:03:01.3]} 3. Nc3 {[%clk 0:02:59.2]} 3... Nf6 {[%clk
0:03:01.9]} 4. d4 {[%clk 0:02:59.2]} 4... exd4 {[%clk 0:03:02.1]} 5. Nxd4 {[%clk
0:02:59.4]} 5... Bc5 {[%clk 0:03:02.5]} 6. Nxc6 {[%clk 0:02:54.5]} 6... bxc6
{[%clk 0:03:03.4]} 7. Bd3 {[%clk 0:02:54.2]} 7... d5 {[%clk 0:03:03.6]} 8. exd5
{[%clk 0:02:49.8]} 8... cxd5 {[%clk 0:03:03.2]} 9. O-O {[%clk 0:02:40.5]} 9...
O-O {[%clk 0:03:03.9]} 10. Bg5 {[%clk 0:02:35.2]} 10... c6 {[%clk 0:03:03.1]}
11. h3 {[%clk 0:02:28.3]} 11... Qd6 {[%clk 0:02:59.1]} 12. Na4 {[%clk
0:02:12.3]} 12... Bb6 {[%clk 0:02:50.3]} 13. Nxb6 {[%clk 0:02:05.5]} 13... axb6
{[%clk 0:02:51.2]} 14. Qf3 {[%clk 0:01:37.2]} 14... Nd7 {[%clk 0:02:51.1]} 15.
Bf4 {[%clk 0:01:20.6]} 15... Qf6 {[%clk 0:02:51.4]} 16. Qg3 {[%clk 0:01:18.1]}
16... c5 {[%clk 0:02:34]} 17. c3 {[%clk 0:01:15.9]} 17... Ba6 {[%clk 0:02:31.9]}
18. Bxa6 {[%clk 0:01:06.4]} 18... Rxa6 {[%clk 0:02:32.4]} 19. a3 {[%clk
0:01:06.9]} 19... d4 {[%clk 0:02:29.1]} 20. cxd4 {[%clk 0:01:04.2]} 20... cxd4
{[%clk 0:02:29.7]} 21. Rad1 {[%clk 0:01:01.3]} 21... Ra4 {[%clk 0:02:26.7]} 22.
Rfe1 {[%clk 0:00:53.9]} 22... Nc5 {[%clk 0:02:21.7]} 23. Be5 {[%clk 0:00:48.5]}
23... Qd8 {[%clk 0:02:21.7]} 24. Qxg7# {[%clk 0:00:47.7]} 1-0

[Event "Late-Titled-Tuesday-Blitz-March-26-2024"]
[Site "Chess.com"]
[Date "2024.03.26"]
[Round "8"]
[White "RuperezA"]
[Black "ural58"]
[Result "1-0"]
[WhiteElo "2487"]
[BlackElo "2458"]
[TimeControl "180+1"]
[EndTime "15:24:36 PDT"]
[Termination "RuperezA won by resignation"]

1. d4 {[%clk 0:03:00.9]} 1... d5 {[%clk 0:02:58.8]} 2. Nc3 {[%clk 0:03:01]} 2...
Nf6 {[%clk 0:02:57.5]} 3. Bg5 {[%clk 0:03:01.1]} 3... Bf5 {[%clk 0:02:56.1]} 4.
Bxf6 {[%clk 0:02:51.9]} 4... gxf6 {[%clk 0:02:54.7]} 5. e3 {[%clk 0:02:52.2]}
5... e6 {[%clk 0:02:44.4]} 6. Bd3 {[%clk 0:02:52.3]} 6... Bg6 {[%clk 0:02:43.8]}
7. h4 {[%clk 0:02:52.9]} 7... h5 {[%clk 0:02:42.3]} 8. Nce2 {[%clk 0:02:52.2]}
8... Bd6 {[%clk 0:02:40.4]} 9. Nh3 {[%clk 0:02:52.3]} 9... c5 {[%clk 0:02:33.4]}
10. Nef4 {[%clk 0:02:44.5]} 10... f5 {[%clk 0:02:21.5]} 11. dxc5 {[%clk
0:02:39.9]} 11... Bxc5 {[%clk 0:02:21.2]} 12. Nxg6 {[%clk 0:02:36.9]} 12... fxg6
{[%clk 0:02:20.7]} 13. c4 {[%clk 0:02:30.2]} 13... Nc6 {[%clk 0:02:18]} 14. Nf4
{[%clk 0:02:29.4]} 14... Kf7 {[%clk 0:02:17]} 15. cxd5 {[%clk 0:02:29]} 15...
exd5 {[%clk 0:02:16.8]} 16. Qb3 {[%clk 0:02:22.5]} 16... Nb4 {[%clk 0:02:11.7]}
17. O-O {[%clk 0:02:20.8]} 17... Qd6 {[%clk 0:02:00.2]} 18. Be2 {[%clk
0:02:14.9]} 18... a5 {[%clk 0:01:56.1]} 19. a4 {[%clk 0:01:52.4]} 19... Rhd8
{[%clk 0:01:53.6]} 20. Rad1 {[%clk 0:01:50.2]} 20... Kg7 {[%clk 0:01:49.6]} 21.
Bf3 {[%clk 0:01:48.4]} 21... Rd7 {[%clk 0:01:37.3]} 22. Nxd5 {[%clk 0:01:39.7]}
22... Nxd5 {[%clk 0:01:35.9]} 23. Rxd5 {[%clk 0:01:40.6]} 23... Qe7 {[%clk
0:01:36]} 24. Qc3+ {[%clk 0:01:39.1]} 1-0

[Event "Late-Titled-Tuesday-Blitz-March-26-2024"]
[Site "Chess.com"]
[Date "2024.03.26"]
[Round "8"]
[White "Supelyel"]
[Black "rdarruda"]
[Result "1/2-1/2"]
[WhiteElo "2410"]
[BlackElo "2519"]
[TimeControl "180+1"]
[EndTime "15:24:50 PDT"]
[Termination "Game drawn by repetition"]

1. c4 {[%clk 0:03:00.9]} 1... e5 {[%clk 0:02:59]} 2. Nc3 {[%clk 0:02:58.8]} 2...
Nc6 {[%clk 0:02:58.9]} 3. g3 {[%clk 0:02:57]} 3... Nf6 {[%clk 0:02:59.3]} 4. Bg2
{[%clk 0:02:57.3]} 4... d6 {[%clk 0:02:59.7]} 5. Nf3 {[%clk 0:02:57.3]} 5... Be7
{[%clk 0:03:00.2]} 6. d3 {[%clk 0:02:57.8]} 6... O-O {[%clk 0:03:00.4]} 7. Bg5
{[%clk 0:02:58.5]} 7... h6 {[%clk 0:02:59.6]} 8. Bxf6 {[%clk 0:02:58.8]} 8...
Bxf6 {[%clk 0:03:00.2]} 9. O-O {[%clk 0:02:59.3]} 9... Bf5 {[%clk 0:02:56.2]}
10. Rb1 {[%clk 0:02:59.6]} 10... Qd7 {[%clk 0:02:55.8]} 11. Nd5 {[%clk
0:02:58.5]} 11... Bd8 {[%clk 0:02:55.6]} 12. Re1 {[%clk 0:02:54.7]} 12... Bh3
{[%clk 0:02:54.1]} 13. Bh1 {[%clk 0:02:55]} 13... Ne7 {[%clk 0:02:54.1]} 14. b4
{[%clk 0:02:54.4]} 14... c6 {[%clk 0:02:53.4]} 15. Nxe7+ {[%clk 0:02:54.6]}
15... Bxe7 {[%clk 0:02:54.3]} 16. b5 {[%clk 0:02:54.3]} 16... Bf6 {[%clk
0:02:47.3]} 17. bxc6 {[%clk 0:02:53.3]} 17... bxc6 {[%clk 0:02:48]} 18. Qa4
{[%clk 0:02:53.3]} 18... d5 {[%clk 0:02:43.5]} 19. Nd2 {[%clk 0:02:38.6]} 19...
Rfd8 {[%clk 0:02:41.2]} 20. Qa6 {[%clk 0:02:30.3]} 20... Rab8 {[%clk 0:02:38.2]}
21. Nb3 {[%clk 0:02:16.7]} 21... Rb6 {[%clk 0:02:28.7]} 22. Qa5 {[%clk
0:02:16.1]} 22... Rdb8 {[%clk 0:02:23.9]} 23. cxd5 {[%clk 0:02:07]} 23... cxd5
{[%clk 0:02:23.9]} 24. Qxd5 {[%clk 0:02:06.7]} 24... Qe7 {[%clk 0:02:12.8]} 25.
Qc4 {[%clk 0:01:39.7]} 25... Be6 {[%clk 0:02:12.1]} 26. Bd5 {[%clk 0:01:39.4]}
26... Rb4 {[%clk 0:02:08.5]} 27. Qc6 {[%clk 0:01:37.2]} 27... R4b6 {[%clk
0:01:55.6]} 28. Qc4 {[%clk 0:01:33.9]} 28... Rb4 {[%clk 0:01:51.9]} 29. Qc6
{[%clk 0:01:07.9]} 29... R4b6 {[%clk 0:01:50.2]} 30. Qc4 {[%clk 0:01:07.5]}
1/2-1/2

[Event "Late-Titled-Tuesday-Blitz-March-26-2024"]
[Site "Chess.com"]
[Date "2024.03.26"]
[Round "8"]
[White "1mbl4"]
[Black "TedBelanoff"]
[Result "1-0"]
[WhiteElo "2619"]
[BlackElo "2238"]
[TimeControl "180+1"]
[EndTime "15:25:10 PDT"]
[Termination "1mbl4 won by checkmate"]

1. b3 {[%clk 0:03:00.9]} 1... b5 {[%clk 0:02:58.2]} 2. Bb2 {[%clk 0:02:59.7]}
2... Bb7 {[%clk 0:02:58.4]} 3. e3 {[%clk 0:02:57.5]} 3... Nf6 {[%clk 0:02:58.4]}
4. Nf3 {[%clk 0:02:57.3]} 4... a6 {[%clk 0:02:58.3]} 5. a4 {[%clk 0:02:56.1]}
5... c6 {[%clk 0:02:56.5]} 6. d4 {[%clk 0:02:53.8]} 6... d5 {[%clk 0:02:53]} 7.
Nbd2 {[%clk 0:02:47.7]} 7... g6 {[%clk 0:02:52.9]} 8. Bd3 {[%clk 0:02:46.9]}
8... Bg7 {[%clk 0:02:52.6]} 9. O-O {[%clk 0:02:45.7]} 9... Nbd7 {[%clk
0:02:52.7]} 10. c4 {[%clk 0:02:45.9]} 10... dxc4 {[%clk 0:02:44.2]} 11. bxc4
{[%clk 0:02:45.4]} 11... bxc4 {[%clk 0:02:37.6]} 12. Nxc4 {[%clk 0:02:42.9]}
12... O-O {[%clk 0:02:37.3]} 13. Ba3 {[%clk 0:02:35.3]} 13... Bc8 {[%clk
0:02:35.1]} 14. a5 {[%clk 0:02:33.7]} 14... Nd5 {[%clk 0:02:34.4]} 15. Rc1
{[%clk 0:02:24.1]} 15... Re8 {[%clk 0:02:32]} 16. Re1 {[%clk 0:02:18.7]} 16...
e5 {[%clk 0:02:30.7]} 17. Nd6 {[%clk 0:02:14.4]} 17... Re6 {[%clk 0:02:26.1]}
18. dxe5 {[%clk 0:02:06.4]} 18... Nxe5 {[%clk 0:02:25.1]} 19. Nd4 {[%clk
0:02:06.5]} 19... Rxd6 {[%clk 0:02:18.9]} 20. Bxd6 {[%clk 0:02:05.5]} 20... Qxd6
{[%clk 0:02:19.3]} 21. Bf1 {[%clk 0:02:03.2]} 21... Ne7 {[%clk 0:02:04]} 22.
Nxc6 {[%clk 0:01:45.1]} 22... Qxd1 {[%clk 0:01:55.8]} 23. Nxe7+ {[%clk
0:01:43.6]} 23... Kf8 {[%clk 0:01:55.2]} 24. Rexd1 {[%clk 0:01:23.2]} 24... Kxe7
{[%clk 0:01:53.9]} 25. Rc7+ {[%clk 0:01:23.7]} 25... Ke8 {[%clk 0:01:45.6]} 26.
f4 {[%clk 0:01:19]} 26... Ng4 {[%clk 0:01:40.6]} 27. Bc4 {[%clk 0:01:15.8]}
27... Nxe3 {[%clk 0:01:29.2]} 28. Bxf7+ {[%clk 0:01:14.7]} 28... Kf8 {[%clk
0:01:26.5]} 29. Rd8# {[%clk 0:01:15.6]} 1-0

[Event "Late-Titled-Tuesday-Blitz-March-26-2024"]
[Site "Chess.com"]
[Date "2024.03.26"]
[Round "8"]
[White "roxannyzoldyck"]
[Black "gorgeous1083"]
[Result "0-1"]
[WhiteElo "2183"]
[BlackElo "2065"]
[TimeControl "180+1"]
[EndTime "15:25:13 PDT"]
[Termination "gorgeous1083 won by resignation"]

1. e4 {[%clk 0:02:59.9]} 1... e6 {[%clk 0:03:00.3]} 2. d4 {[%clk 0:02:59.5]}
2... d5 {[%clk 0:03:01.2]} 3. e5 {[%clk 0:03:00]} 3... c5 {[%clk 0:03:01.1]} 4.
c3 {[%clk 0:03:00.6]} 4... Qb6 {[%clk 0:03:01.7]} 5. Nf3 {[%clk 0:03:00.7]} 5...
Nc6 {[%clk 0:03:02.3]} 6. Bd3 {[%clk 0:02:59]} 6... Bd7 {[%clk 0:03:00.6]} 7.
O-O {[%clk 0:02:59.2]} 7... cxd4 {[%clk 0:02:59.2]} 8. cxd4 {[%clk 0:03:00.1]}
8... Nxd4 {[%clk 0:02:57.5]} 9. Nxd4 {[%clk 0:03:00]} 9... Qxd4 {[%clk
0:02:57.4]} 10. Nc3 {[%clk 0:03:00.6]} 10... Qb6 {[%clk 0:02:51.1]} 11. Qg4
{[%clk 0:02:54.8]} 11... Ne7 {[%clk 0:02:47.3]} 12. Be3 {[%clk 0:02:53.1]} 12...
Qd8 {[%clk 0:02:44.8]} 13. Rac1 {[%clk 0:02:49]} 13... a6 {[%clk 0:02:44.6]} 14.
Na4 {[%clk 0:02:44.4]} 14... Nf5 {[%clk 0:02:39.4]} 15. Nb6 {[%clk 0:02:27.3]}
15... Nxe3 {[%clk 0:02:33.6]} 16. Qd4 {[%clk 0:02:19.5]} 16... Nxf1 {[%clk
0:02:14.9]} 17. Bxf1 {[%clk 0:02:16.5]} 17... Rb8 {[%clk 0:02:01.3]} 18. b4
{[%clk 0:02:03.9]} 18... Be7 {[%clk 0:01:55.9]} 19. a4 {[%clk 0:01:57.2]} 19...
O-O {[%clk 0:01:52.6]} 20. a5 {[%clk 0:01:56]} 20... Bc6 {[%clk 0:01:50.9]} 21.
f4 {[%clk 0:01:52.3]} 21... Qe8 {[%clk 0:01:48.4]} 22. Bd3 {[%clk 0:01:47.2]}
22... Bd8 {[%clk 0:01:48]} 23. f5 {[%clk 0:01:35.9]} 23... Bxb6 {[%clk
0:01:45.7]} 24. axb6 {[%clk 0:01:35.7]} 24... exf5 {[%clk 0:01:30.8]} 25. Bxf5
{[%clk 0:01:36.6]} 25... g6 {[%clk 0:01:29.9]} 26. Bd3 {[%clk 0:01:23.3]} 26...
Bb5 {[%clk 0:01:26.4]} 27. Bb1 {[%clk 0:01:23]} 27... Rc8 {[%clk 0:01:23.8]} 28.
Rf1 {[%clk 0:01:23]} 28... Bxf1 {[%clk 0:01:21.8]} 0-1

[Event "Late-Titled-Tuesday-Blitz-March-26-2024"]
[Site "Chess.com"]
[Date "2024.03.26"]
[Round "8"]
[White "Fh2411"]
[Black "emeli_chess"]
[Result "1-0"]
[WhiteElo "2580"]
[BlackElo "2416"]
[TimeControl "180+1"]
[EndTime "15:25:23 PDT"]
[Termination "Fh2411 won by resignation"]

1. d4 {[%clk 0:03:00.9]} 1... Nf6 {[%clk 0:02:59.6]} 2. Nf3 {[%clk 0:03:01.2]}
2... d5 {[%clk 0:02:59.4]} 3. Bf4 {[%clk 0:03:01.6]} 3... e6 {[%clk 0:02:56.6]}
4. e3 {[%clk 0:03:01.8]} 4... Bd6 {[%clk 0:02:56.3]} 5. Nbd2 {[%clk 0:03:02.1]}
5... O-O {[%clk 0:02:56]} 6. Bd3 {[%clk 0:03:02.2]} 6... c5 {[%clk 0:02:53.8]}
7. c3 {[%clk 0:03:02.4]} 7... Qc7 {[%clk 0:02:52.4]} 8. Bxd6 {[%clk 0:03:03]}
8... Qxd6 {[%clk 0:02:52.2]} 9. Ne5 {[%clk 0:03:03.7]} 9... Nbd7 {[%clk
0:02:42.2]} 10. f4 {[%clk 0:03:03.3]} 10... Re8 {[%clk 0:02:40]} 11. O-O {[%clk
0:03:01.8]} 11... Nf8 {[%clk 0:02:39]} 12. Rf3 {[%clk 0:02:56]} 12... N6d7
{[%clk 0:02:36.9]} 13. Rh3 {[%clk 0:02:53.3]} 13... f6 {[%clk 0:02:33.6]} 14.
Bxh7+ {[%clk 0:02:28.4]} 14... Nxh7 {[%clk 0:02:31.6]} 15. Qh5 {[%clk
0:02:27.7]} 15... Ndf8 {[%clk 0:01:57.2]} 16. Qf7+ {[%clk 0:01:58.7]} 16... Kh8
{[%clk 0:01:56.9]} 17. Ng6+ {[%clk 0:01:47.8]} 17... Nxg6 {[%clk 0:01:56.5]} 18.
Qxg6 {[%clk 0:01:48.7]} 18... Kg8 {[%clk 0:01:54.2]} 19. Qxe8+ {[%clk
0:01:48.6]} 19... Nf8 {[%clk 0:01:46.5]} 20. Nf3 {[%clk 0:01:38.1]} 20... b6
{[%clk 0:01:35.5]} 21. Rf1 {[%clk 0:01:32.7]} 21... Bb7 {[%clk 0:01:35]} 22. Qh5
{[%clk 0:01:32.9]} 22... Rc8 {[%clk 0:01:29.8]} 23. Ne5 {[%clk 0:01:27.5]} 1-0

[Event "Late-Titled-Tuesday-Blitz-March-26-2024"]
[Site "Chess.com"]
[Date "2024.03.26"]
[Round "8"]
[White "HansOnTwitch"]
[Black "aa175"]
[Result "1-0"]
[WhiteElo "3103"]
[BlackElo "2754"]
[TimeControl "180+1"]
[EndTime "15:25:25 PDT"]
[Termination "HansOnTwitch won by resignation"]

1. e4 {[%clk 0:03:00.9]} 1... e5 {[%clk 0:03:00.2]} 2. Nf3 {[%clk 0:03:00.8]}
2... Nf6 {[%clk 0:03:00.8]} 3. Nxe5 {[%clk 0:03:00.3]} 3... d6 {[%clk
0:03:00.9]} 4. Nd3 {[%clk 0:03:00.9]} 4... Nxe4 {[%clk 0:03:01.6]} 5. Qe2 {[%clk
0:03:01.2]} 5... Qe7 {[%clk 0:03:02.3]} 6. Nf4 {[%clk 0:03:01.9]} 6... Nc6
{[%clk 0:03:02.7]} 7. Nd5 {[%clk 0:03:02.3]} 7... Nd4 {[%clk 0:03:03.4]} 8. Nxe7
{[%clk 0:03:02.9]} 8... Nxe2 {[%clk 0:03:04.1]} 9. Nd5 {[%clk 0:03:03.1]} 9...
Nd4 {[%clk 0:03:04.8]} 10. Na3 {[%clk 0:03:03.7]} 10... Ne6 {[%clk 0:03:03.1]}
11. f3 {[%clk 0:03:03.2]} 11... N4c5 {[%clk 0:03:02.6]} 12. d4 {[%clk
0:03:03.8]} 12... c6 {[%clk 0:02:59]} 13. dxc5 {[%clk 0:03:03.6]} 13... cxd5
{[%clk 0:02:58.8]} 14. cxd6 {[%clk 0:03:03.6]} 14... Bxd6 {[%clk 0:02:59.7]} 15.
Be3 {[%clk 0:03:03.3]} 15... Bxa3 {[%clk 0:02:57.4]} 16. bxa3 {[%clk 0:03:03.2]}
16... Bd7 {[%clk 0:02:48.6]} 17. O-O-O {[%clk 0:03:03]} 17... Bc6 {[%clk
0:02:45.9]} 18. c4 {[%clk 0:03:02.5]} 18... dxc4 {[%clk 0:02:04.5]} 19. Bxc4
{[%clk 0:03:01.8]} 19... Ke7 {[%clk 0:01:59.3]} 20. Rhe1 {[%clk 0:03:00]} 20...
Rhc8 {[%clk 0:01:30.9]} 21. Kb2 {[%clk 0:02:59.7]} 21... Kf6 {[%clk 0:01:15.1]}
22. Rd2 {[%clk 0:02:45.6]} 22... Rd8 {[%clk 0:01:08.2]} 23. h4 {[%clk
0:02:45.7]} 23... Rxd2+ {[%clk 0:01:05.1]} 24. Bxd2 {[%clk 0:02:46.6]} 24... h5
{[%clk 0:00:40.4]} 25. Bc3+ {[%clk 0:02:44.2]} 25... Kg6 {[%clk 0:00:41]} 26.
Bd3+ {[%clk 0:02:38]} 26... Kh6 {[%clk 0:00:40.2]} 27. Bd2+ {[%clk 0:02:38.6]}
27... g5 {[%clk 0:00:38.3]} 28. hxg5+ {[%clk 0:02:30.2]} 28... Nxg5 {[%clk
0:00:33.8]} 29. Re5 {[%clk 0:02:25.7]} 29... f6 {[%clk 0:00:28]} 30. Re7 {[%clk
0:02:25.8]} 30... Rh8 {[%clk 0:00:14.4]} 31. Rf7 {[%clk 0:02:23.9]} 31... h4
{[%clk 0:00:10.6]} 32. Rxf6+ {[%clk 0:02:24.3]} 32... Kh5 {[%clk 0:00:11]} 33.
Bg6+ {[%clk 0:02:24.2]} 33... Kh6 {[%clk 0:00:11.1]} 34. Bf5+ {[%clk 0:02:25.1]}
1-0

[Event "Late-Titled-Tuesday-Blitz-March-26-2024"]
[Site "Chess.com"]
[Date "2024.03.26"]
[Round "8"]
[White "rikchessmx"]
[Black "AccioChess"]
[Result "1-0"]
[WhiteElo "2301"]
[BlackElo "2483"]
[TimeControl "180+1"]
[EndTime "15:25:57 PDT"]
[Termination "rikchessmx won on time"]

1. e4 {[%clk 0:03:00.9]} 1... e6 {[%clk 0:02:51.7]} 2. d4 {[%clk 0:02:58.5]}
2... d5 {[%clk 0:02:52.6]} 3. Nc3 {[%clk 0:02:58.8]} 3... Nf6 {[%clk 0:02:51]}
4. Bg5 {[%clk 0:02:58.1]} 4... dxe4 {[%clk 0:02:41.7]} 5. Nxe4 {[%clk
0:02:57.7]} 5... Be7 {[%clk 0:02:42.6]} 6. Bxf6 {[%clk 0:02:57.5]} 6... gxf6
{[%clk 0:02:42.9]} 7. Nf3 {[%clk 0:02:57.4]} 7... a6 {[%clk 0:02:41]} 8. Bc4
{[%clk 0:02:56.8]} 8... b5 {[%clk 0:02:40.8]} 9. Bb3 {[%clk 0:02:56.9]} 9... Bb7
{[%clk 0:02:41.2]} 10. Qe2 {[%clk 0:02:54.4]} 10... Nd7 {[%clk 0:02:41.3]} 11.
O-O-O {[%clk 0:02:53.4]} 11... f5 {[%clk 0:02:30]} 12. Ng3 {[%clk 0:02:50.4]}
12... Nb6 {[%clk 0:01:39.6]} 13. Rhe1 {[%clk 0:02:43.3]} 13... O-O {[%clk
0:01:36.2]} 14. Nxf5 {[%clk 0:02:38]} 14... Bf6 {[%clk 0:01:18.6]} 15. Nh6+
{[%clk 0:02:32.5]} 15... Kh8 {[%clk 0:01:18.3]} 16. Ng4 {[%clk 0:02:32.2]} 16...
Bg7 {[%clk 0:01:17.6]} 17. Kb1 {[%clk 0:02:06.4]} 17... Nd5 {[%clk 0:01:09.7]}
18. Nge5 {[%clk 0:02:01.9]} 18... Nf4 {[%clk 0:00:46.3]} 19. Qf1 {[%clk
0:02:00.1]} 19... Nd5 {[%clk 0:00:13.9]} 20. h4 {[%clk 0:01:56.1]} 20... h6
{[%clk 0:00:07.2]} 21. Qd3 {[%clk 0:01:51]} 21... Nf4 {[%clk 0:00:06.6]} 22. Qf1
{[%clk 0:01:48.5]} 22... f6 {[%clk 0:00:05.4]} 23. Nd3 {[%clk 0:01:44]} 23...
Bxf3 {[%clk 0:00:03.2]} 24. gxf3 {[%clk 0:01:41.9]} 24... Nxd3 {[%clk
0:00:01.6]} 25. Qxd3 {[%clk 0:01:40.9]} 1-0